bitfinex/quotes_SOLUSD_20250901
["timestamp","ask_amount","ask_price","bid_price","bid_amount"]
[1756736978655,46.66337865,200.37,200.36,0.12]
[1756736978851,40.95261157,200.37,200.36,0.12]
[1756736979054,38.95216157,200.37,200.36,0.12]
[1756736979258,43.94292865,200.37,200.36,0.12]
[1756736980466,38.95216157,200.37,200.36,0.12]
[1756736981047,44.66292865,200.37,200.36,0.12]
[1756736981253,52.2225313,200.37,200.36,0.12]
[1756736981844,54.2230823,200.37,200.36,0.12]
[1756736982968,67.81867631,200.37,200.36,0.12]
[1756736986174,63.62486411,200.37,200.36,0.12]
[1756736986369,67.81867631,200.37,200.36,0.12]
[1756736987953,66.3082604,200.37,200.36,0.12]
[1756736988158,58.61409703,200.37,200.36,0.12]
[1756736988380,61.29749332,200.37,200.36,0.12]
[1756736989482,57.89409703,200.37,200.36,0.12]
[1756736989698,5.39634145,200.37,200.36,0.8]
[1756736989854,42.15579045,200.37,200.36,0.8]
[1756736990055,42.29795202,200.37,200.36,0.12]
[1756736990776,42.15579045,200.37,200.36,0.12]
[1756736991085,3.53795202,200.37,200.36,0.12]
[1756736991379,38.93216157,200.37,200.36,0.12]
[1756736992658,47.28885183,200.37,200.36,0.12]
[1756736992852,38.93216157,200.37,200.36,0.12]
[1756736993380,38.93216157,200.37,200.36,0.8]
[1756736995586,38.79,200.37,200.36,0.8]
[1756736996663,38.79,200.37,200.36,9.98208064]
[1756736998280,0.03,200.37,200.36,9.98208064]
[1756736998484,38.79,200.37,200.36,9.98208064]
[1756737000177,0.03,200.37,200.36,9.98208064]
[1756737000789,0.03,200.37,200.36,35.98208064]
[1756737001798,0.03,200.4,200.36,48.45962106]
[1756737001986,0.03,200.4,200.39,4.19106447]
[1756737002397,0.03,200.4,200.39,4.87106447]
[1756737003794,0.03,200.4,200.39,9.86133344]
[1756737004491,0.03,200.4,200.37,4.99074523]
[1756737004681,0.03,200.4,200.38,4.19106447]
[1756737004866,0.03,200.4,200.39,4.19106447]
[1756737007393,0.69,200.4,200.38,4.19106447]
[1756737007604,38.74,200.39,200.38,4.19106447]
[1756737008472,38.74,200.39,200.38,9.90158248]
[1756737008702,0.03,200.4,200.38,5.71051801]
[1756737008881,0.03,200.4,200.38,9.18158248]
[1756737009086,38.77,200.4,200.39,4.19106447]
[1756737009490,38.77,200.4,200.39,4.91106447]
[1756737010017,38.77,200.4,200.39,9.90133344]
[1756737010582,0.03,200.4,200.39,9.90133344]
[1756737010918,0.03,200.4,200.39,14.09239791]
[1756737011079,0.03,200.42,200.41,26.0]
[1756737011284,0.03,200.42,200.41,30.19106447]
[1756737011493,0.03,200.42,200.41,30.91106447]
[1756737011977,0.03,200.42,200.41,35.90083543]
[1756737012587,0.03,200.45,200.41,48.37526285]
[1756737012799,0.03,200.45,200.44,4.19106447]
[1756737013180,0.03,200.45,200.44,4.91106447]
[1756737014116,0.03,200.45,200.44,9.90008861]
[1756737014681,1e-08,200.45,200.44,49.49568262]
[1756737016717,1e-08,200.45,200.44,51.49423462]
[1756737017009,1e-08,200.45,200.44,33.70757614]
[1756737017219,1e-08,200.45,200.44,32.18961647]
[1756737017422,0.66000001,200.45,200.44,6.18961647]
[1756737017624,0.66000001,200.45,200.44,1.998552]
[1756737017789,0.66000001,200.45,200.44,4.19106447]
[1756737018193,0.66000001,200.45,200.4,1.99925]
[1756737018399,0.66000001,200.45,200.41,4.19106447]
[1756737018400,0.66,200.44,200.41,4.19106447]
[1756737018599,0.66,200.43,200.41,4.19106447]
[1756737018793,0.66,200.42,200.41,4.19106447]
[1756737019609,0.66,200.44,200.41,4.19106447]
[1756737019813,0.66,200.43,200.42,4.19106447]
[1756737020603,0.66,200.43,200.41,4.19106447]
[1756737020799,39.38,200.42,200.39,4.19106447]
[1756737021019,0.66,200.41,200.39,4.19106447]
[1756737021228,0.66,200.4,200.38,4.19106447]
[1756737021433,0.66,200.39,200.36,0.12]
[1756737021814,0.66,200.38,200.36,4.31106447]
[1756737022009,0.66,200.38,200.37,4.19106447]
[1756737022401,0.66,200.38,200.36,4.31106447]
[1756737022597,0.66,200.37,200.36,4.31106447]
[1756737022804,39.38,200.37,200.36,0.12]
[1756737023710,41.52241157,200.37,200.36,0.12]
[1756737023920,45.71347604,200.37,200.36,0.12]
[1756737024634,50.70424312,200.37,200.36,0.12]
[1756737025730,64.29983713,200.37,200.36,0.12]
[1756737026706,13.73775558,200.36,200.35,0.2]
[1756737026909,17.92882005,200.36,200.35,0.2]
[1756737027135,18.58882005,200.36,200.35,0.2]
[1756737028414,20.58997105,200.36,200.35,0.2]
[1756737029209,45.58098722,200.36,200.34,0.12]
[1756737029536,33.73775558,200.33,200.32,1e-08]
[1756737029739,76.64882005,200.33,200.31,1e-08]
[1756737030028,18.58882005,200.32,200.31,1e-08]
[1756737030234,27.25807305,200.32,200.31,1e-08]
[1756737030806,32.25008582,200.32,200.31,1e-08]
[1756737031207,36.44115029,200.32,200.31,1e-08]
[1756737032238,75.16115029,200.32,200.31,1e-08]
[1756737032614,70.97008582,200.32,200.31,1e-08]
[1756737032815,75.16115029,200.32,200.31,1e-08]
[1756737034633,80.99238741,200.32,200.31,1e-08]
[1756737035741,76.80132294,200.32,200.31,1e-08]
[1756737036123,80.99238741,200.32,200.31,1e-08]
[1756737036353,80.99238741,200.32,200.2,0.2]
[1756737036354,39.59559401,200.28,200.2,0.87]
[1756737036511,4.19106447,200.22,200.2,0.2]
[1756737036713,38.86216157,200.21,200.2,0.2]
[1756737037929,38.88216157,200.21,200.2,0.2]
[1756737038443,48.06798107,200.21,200.2,0.2]
[1756737038814,66.52463955,200.21,200.2,0.2]
[1756737040326,27.78463955,200.21,200.2,0.2]
[1756737040521,66.52463955,200.21,200.2,0.2]
[1756737041023,27.78463955,200.21,200.2,0.2]
[1756737041419,65.85463955,200.21,200.2,0.2]
[1756737041618,62.33357508,200.21,200.2,0.2]
[1756737041858,66.52463955,200.21,200.2,0.2]
[1756737042432,62.33357508,200.21,200.2,0.2]
[1756737042633,66.52463955,200.21,200.2,0.2]
[1756737042816,81.52463955,200.21,200.2,0.2]
[1756737043016,77.33357508,200.21,200.2,0.2]
[1756737043318,81.52463955,200.21,200.2,0.2]
[1756737044937,87.35587667,200.21,200.2,1e-08]
[1756737045643,83.1648122,200.21,200.2,1e-08]
[1756737045947,87.35587667,200.21,200.2,1e-08]
[1756737046147,91.54694114,200.21,200.2,1e-08]
[1756737046944,52.80694114,200.21,200.2,1e-08]
[1756737047138,91.54694114,200.21,200.2,1e-08]
[1756737047634,48.61587667,200.21,200.2,1e-08]
[1756737047831,87.35587667,200.21,200.2,1e-08]
[1756737048027,48.61587667,200.21,200.2,1e-08]
[1756737048228,87.35587667,200.21,200.2,1e-08]
[1756737049055,91.54694114,200.21,200.2,1e-08]
[1756737050046,48.61587667,200.21,200.2,1e-08]
[1756737050253,87.35587667,200.21,200.2,1e-08]
[1756737051353,91.54694114,200.21,200.2,1e-08]
[1756737051952,111.54694114,200.21,200.2,1e-08]
[1756737052558,39.59559401,200.18,200.15,0.12]
[1756737052757,13.59559401,200.11,200.1,0.2]
[1756737052938,56.66882005,200.11,200.1,0.2]
[1756737053260,65.58919856,200.11,200.1,0.87]
[1756737054035,65.58919856,200.11,200.1,0.2]
[1756737055336,61.39813409,200.11,200.1,0.2]
[1756737055538,65.58919856,200.11,200.1,0.2]
[1756737055939,26.84919856,200.11,200.1,0.2]
[1756737056144,65.60919856,200.11,200.1,0.2]
[1756737056452,65.60919856,200.11,200.1,0.87]
[1756737056644,8.25635304,200.11,200.1,0.87]
[1756737056838,68.683127,200.11,200.1,0.87]
[1756737057034,42.683127,200.11,200.1,0.87]
[1756737057740,52.01360455,200.11,200.1,0.87]
[1756737057944,42.82528857,200.11,200.1,0.87]
[1756737058257,47.82254008,200.11,200.1,0.87]
[1756737058456,35.06254008,200.11,200.1,0.87]
[1756737058633,68.82528857,200.11,200.1,0.87]
[1756737059144,30.06528857,200.11,200.1,0.87]
[1756737059346,68.82528857,200.11,200.1,0.87]
[1756737059546,3.923127,200.11,200.1,0.87]
[1756737059860,3.923127,200.11,200.1,10.05856571]
[1756737059861,42.683127,200.11,200.1,10.05856571]
[1756737060556,3.923127,200.11,200.1,10.05856571]
[1756737061765,38.76,200.11,200.1,10.05856571]
[1756737061937,38.76,200.11,200.1,0.87]
[1756737062451,38.90216157,200.11,200.1,0.87]
[1756737063149,43.89941308,200.11,200.1,0.2]
[1756737063350,38.90216157,200.11,200.1,0.2]
[1756737066646,38.90216157,200.11,200.1,0.87]
[1756737067372,0.14216157,200.11,200.1,0.87]
[1756737067749,38.90216157,200.11,200.1,5.06106447]
[1756737068261,138.091064,200.15,200.1,10.05856571]
[1756737068458,138.091064,200.15,200.11,4.86106447]
[1756737068671,38.76,200.14,200.12,0.67]
[1756737069377,0.14216157,200.13,200.12,0.67]
[1756737069577,0.14216157,200.13,200.1,0.2]
[1756737069780,38.76,200.12,200.1,0.2]
[1756737069958,38.76,200.12,200.1,0.87]
[1756737070471,38.76,200.12,200.1,0.2]
[1756737070680,38.76,200.12,200.11,0.67]
[1756737072165,38.76,200.12,200.1,4.39106447]
[1756737072364,38.76,200.12,200.1,5.06106447]
[1756737073783,44.47702856,200.12,200.1,0.2]
[1756737075990,5.13941308,200.11,200.1,0.2]
[1756737076287,10.05047755,200.11,200.1,0.2]
[1756737077996,23.64607156,200.11,200.1,0.2]
[1756737081391,62.40607156,200.11,200.1,0.2]
[1756737082199,23.64607156,200.11,200.1,0.2]
[1756737082401,10.81230212,200.13,200.06,4.19106447]
[1756737082402,9.97787938,200.13,200.06,4.19106447]
[1756737082586,20.0,200.08,200.01,13.59559401]
[1756737082780,38.76,200.07,200.01,13.59559401]
[1756737082966,38.76,200.07,199.98,2.002955]
[1756737083188,38.76,200.07,199.99,13.59559401]
[1756737083388,20.0,200.08,199.99,13.59559401]
[1756737083621,38.76,200.07,200.01,13.59559401]
[1756737084041,38.76,200.07,200.06,4.19106447]
[1756737085227,20.0,200.06,200.05,4.19106447]
[1756737085426,20.0,200.06,200.0,21.69106447]
[1756737085427,20.0,200.04,200.03,4.19106447]
[1756737085639,58.76,200.04,200.02,4.19106447]
[1756737086690,20.0,200.04,200.03,4.19106447]
[1756737086890,58.74,200.04,200.03,4.19106447]
[1756737087110,20.0,200.04,200.03,4.19106447]
[1756737087312,58.74,200.04,200.03,4.19106447]
[1756737087518,20.0,200.09,200.04,4.99900019]
[1756737087722,20.0,200.09,200.08,4.19106447]
[1756737087920,58.74,200.09,200.08,4.19106447]
[1756737088610,20.0,200.07,200.05,4.19106447]
[1756737088797,38.74,200.06,200.04,4.19106447]
[1756737089121,20.0,200.05,200.04,4.19106447]
[1756737092095,18.74,200.06,200.04,4.19106447]
[1756737092928,23.73853393,200.06,200.02,4.19106447]
[1756737093102,18.74,200.06,200.02,4.19106447]
[1756737093917,20.0,200.01,199.9,4.33322604]
[1756737094227,20.0,200.01,200.0,4.19106447]
[1756737094420,58.74,200.01,200.0,4.19106447]
[1756737094920,38.74,200.01,200.0,4.19106447]
[1756737095325,38.74,200.01,199.95,12.502843]
[1756737095326,38.74,200.01,199.96,5.0010002]
[1756737095625,58.74,200.01,199.99,4.19106447]
[1756737096499,58.74,200.01,199.98,4.19106447]
[1756737096704,58.74,200.01,199.91,5.00225101]
[1756737096705,20.0,199.98,199.91,5.00225101]
[1756737096927,38.74,199.97,199.91,5.00225101]
[1756737097419,52.5,199.96,199.91,5.00225101]
[1756737097647,38.76,199.95,199.91,5.00225101]
[1756737098018,37.048,199.95,199.91,5.00225101]
[1756737098214,37.048,199.95,199.94,4.19106447]
[1756737099817,57.048,199.95,199.94,4.19106447]
[1756737100023,37.048,199.95,199.94,4.19106447]
[1756737100310,38.76,199.95,199.94,4.19106447]
[1756737100524,38.76,199.95,199.94,9.19256492]
[1756737101119,58.76,199.95,199.94,9.19256492]
[1756737101511,58.76,199.95,199.94,4.19106447]
[1756737103033,38.76,199.95,199.94,9.19256492]
[1756737103225,58.76,199.95,199.94,4.19106447]
[1756737103416,38.76,199.95,199.94,4.19106447]
[1756737103825,58.76,199.95,199.94,4.19106447]
[1756737104332,38.76,199.95,199.94,4.19106447]
[1756737104529,58.76,199.95,199.94,4.19106447]
[1756737105234,72.5,199.96,199.94,4.19106447]
[1756737105437,52.5,199.96,199.95,4.19106447]
[1756737105807,52.5,199.96,199.95,9.19231478]
[1756737106051,91.26,199.96,199.95,9.19231478]
[1756737106420,91.26,199.96,199.95,5.00125031]
[1756737106742,52.5,199.96,199.95,9.19231478]
[1756737106910,91.26,199.96,199.95,9.19231478]
[1756737107536,133.9,200.01,199.95,21.69544056]
[1756737107717,133.9,200.01,200.0,4.19106447]
[1756737107949,52.4,200.02,200.01,4.99975001]
[1756737108145,91.16,200.02,200.01,9.19081448]
[1756737108342,91.16,200.02,200.01,4.99975001]
[1756737108550,91.16,200.02,200.01,9.19081448]
[1756737108731,91.16,200.02,200.01,4.19106447]
[1756737109848,38.76,200.02,200.01,4.19106447]
[1756737110051,38.76,200.02,200.01,9.19081448]
[1756737110657,133.9,200.05,200.01,9.19081448]
[1756737110953,38.76,200.04,200.01,4.99975001]
[1756737111313,20.66,200.03,199.97,5.00075011]
[1756737111508,38.76,200.02,199.97,5.00075011]
[1756737111971,38.76,200.02,200.01,4.19106447]
[1756737112149,39.42,200.02,200.01,4.19106447]
[1756737112646,38.76,200.02,200.01,4.19106447]
[1756737113028,134.56,200.05,200.01,4.19106447]
[1756737113029,153.9,200.05,200.01,4.19106447]
[1756737113240,20.66,200.08,200.04,4.19106447]
[1756737113442,38.78,200.07,200.0,4.19106447]
[1756737113640,20.0,200.05,199.99,17.50081818]
[1756737113843,20.0,200.03,199.96,5.0010002]
[1756737114069,38.78,200.02,199.96,5.0010002]
[1756737114768,20.0,200.01,200.0,4.19106447]
[1756737115067,20.66,200.01,200.0,4.19106447]
[1756737117167,52.4,200.0,199.95,5.00125031]
[1756737117467,59.44,199.99,199.98,4.19106447]
[1756737118360,59.44,199.99,199.95,0.12]
[1756737118361,20.0,199.96,199.95,0.12]
[1756737118535,58.78,199.96,199.95,4.31106447]
[1756737118734,59.44,199.96,199.95,4.31106447]
[1756737119133,59.44,199.96,199.95,0.12]
[1756737120264,64.58316177,199.96,199.95,0.12]
[1756737120644,20.0,199.97,199.95,4.31106447]
[1756737120857,20.0,199.97,199.96,4.19106447]
[1756737121048,59.46,199.97,199.96,4.19106447]
[1756737121240,20.0,199.96,199.95,0.12]
[1756737121452,58.9,199.96,199.95,4.31106447]
[1756737122260,58.92,199.96,199.95,4.31106447]
[1756737122583,59.58,199.96,199.95,4.31106447]
[1756737122768,59.58,199.96,199.95,0.12]
[1756737123146,64.5810002,199.96,199.95,0.12]
[1756737123777,68.91422624,199.96,199.95,0.12]
[1756737123966,72.04,199.91,199.9,4.19106447]
[1756737124284,153.9,199.9,199.88,4.19106447]
[1756737124512,153.9,199.9,199.89,4.19106447]
[1756737124783,38.94,199.9,199.89,4.19106447]
[1756737125078,58.94,199.9,199.89,4.19106447]
[1756737126889,38.94,199.9,199.89,4.19106447]
[1756737127449,38.94,199.9,199.83,38.51021795]
[1756737127674,51.84,199.89,199.84,13.59559401]
[1756737127879,51.84,199.89,199.88,4.19106447]
[1756737128084,52.2,199.92,199.88,4.19106447]
[1756737128303,52.2,199.92,199.91,4.19106447]
[1756737128499,91.14,199.92,199.91,4.19106447]
[1756737128706,91.14,199.92,199.9,4.19106447]
[1756737129015,91.14,199.92,199.91,4.19106447]
[1756737129501,52.2,199.92,199.91,4.19106447]
[1756737129713,91.14,199.92,199.91,4.19106447]
[1756737130400,91.14,199.92,199.9,5.00230794]
[1756737130571,111.14,199.92,199.91,4.19106447]
[1756737131090,111.14,199.92,199.91,9.19331548]
[1756737131287,59.64,199.92,199.91,9.19331548]
[1756737131597,38.94,199.92,199.91,9.19331548]
[1756737131802,38.96,199.92,199.91,9.19331548]
[1756737132569,39.66,199.92,199.86,12.50857458]
[1756737132796,59.66,199.92,199.87,5.00325211]
[1756737133091,20.7,199.91,199.87,5.00325211]
[1756737133304,38.98,199.9,199.87,5.00325211]
[1756737133512,39.68,199.9,199.87,5.00325211]
[1756737133878,0.7,199.89,199.82,31.11135819]
[1756737134092,91.2,199.88,199.82,31.11135819]
[1756737134299,91.2,199.88,199.87,4.19106447]
[1756737134480,39.0,199.88,199.87,4.19106447]
[1756737135377,133.9,199.91,199.87,4.19106447]
[1756737135378,153.9,199.91,199.87,4.19106447]
[1756737135581,153.9,199.91,199.82,17.51576418]
[1756737135582,153.9,199.91,199.9,4.19106447]
[1756737135786,193.6,199.91,199.9,4.19106447]
[1756737137519,193.6,199.91,199.89,4.19106447]
[1756737137807,20.7,199.9,199.89,4.19106447]
[1756737138709,20.7,199.9,199.81,5.00475451]
[1756737138919,91.9,199.89,199.81,17.5166408]
[1756737139488,111.2,199.89,199.81,5.00475451]
[1756737139734,111.2,199.89,199.81,17.5166408]
[1756737140028,38.98,199.88,199.81,17.5166408]
[1756737140194,38.98,199.88,199.87,4.19106447]
[1756737140635,162.6,199.91,199.88,5.0030018]
[1756737140802,39.68,199.9,199.88,5.0030018]
[1756737140993,59.68,199.9,199.88,5.0030018]
[1756737141193,0.7,199.89,199.85,5.00375281]
[1756737141401,38.98,199.88,199.85,5.00375281]
[1756737141926,38.98,199.88,199.87,4.19106447]
[1756737142531,38.98,199.88,199.87,9.19431658]
[1756737142828,38.96,199.88,199.87,9.19431658]
[1756737143208,39.66,199.88,199.87,4.19106447]
[1756737144095,0.7,199.88,199.87,4.19106447]
[1756737144528,39.0,199.88,199.87,4.19106447]
[1756737145425,39.7,199.88,199.82,17.51516045]
[1756737145633,52.9,199.87,199.82,5.00450405]
[1756737145825,39.0,199.86,199.82,5.00450405]
[1756737146005,39.7,199.86,199.85,4.19106447]
[1756737146209,39.7,199.86,199.82,5.00450405]
[1756737146405,39.0,199.86,199.85,4.19106447]
[1756737147007,39.7,199.86,199.85,9.19481728]
[1756737147205,39.7,199.86,199.85,5.00375281]
[1756737147401,39.7,199.86,199.85,9.19481728]
[1756737148311,39.7,199.86,199.85,4.19106447]
[1756737149246,39.7,199.86,199.85,9.19481728]
[1756737149444,39.7,199.86,199.81,0.12]
[1756737149607,39.0,199.86,199.81,0.12]
[1756737149807,39.0,199.86,199.85,4.19106447]
[1756737150242,39.7,199.86,199.85,4.19106447]
[1756737150957,39.7,199.86,199.81,0.12]
[1756737150958,20.0,199.83,199.81,0.12]
[1756737151245,58.98,199.82,199.81,0.12]
[1756737151619,59.68,199.82,199.81,0.12]
[1756737152064,59.68,199.82,199.81,5.12475451]
[1756737152253,59.68,199.82,199.81,0.12]
[1756737152843,59.68,199.82,199.81,4.31106447]
[1756737153028,59.68,199.82,199.81,0.12]
[1756737153210,59.68,199.82,199.81,4.31106447]
[1756737153417,59.68,199.82,199.81,0.12]
[1756737153725,59.68,199.82,199.81,4.31106447]
[1756737154119,59.68,199.82,199.81,0.12]
[1756737155310,20.7,199.82,199.81,0.12]
[1756737155519,59.68,199.82,199.81,9.31581898]
[1756737155711,59.68,199.82,199.81,4.31106447]
[1756737155712,0.7,199.82,199.81,4.31106447]
[1756737155964,39.66,199.82,199.81,9.31581898]
[1756737156254,59.66,199.82,199.81,9.31581898]
[1756737157012,154.56,199.85,199.81,9.31581898]
[1756737157218,134.56,199.85,199.84,9.19506767]
[1756737157523,172.88,199.85,199.84,9.19506767]
[1756737158121,173.54,199.85,199.84,9.19506767]
[1756737158337,173.54,199.85,199.84,5.0040032]
[1756737158557,172.88,199.85,199.84,9.19506767]
[1756737158937,133.9,199.85,199.84,9.19506767]
[1756737159133,0.66,199.89,199.84,21.70507567]
[1756737159377,0.66,199.89,199.88,4.19106447]
[1756737159667,59.64,199.89,199.88,4.19106447]
[1756737159850,59.64,199.89,199.84,17.5140112]
[1756737160047,58.98,199.89,199.84,5.0040032]
[1756737160367,58.98,199.88,199.87,4.19106447]
[1756737160845,59.64,199.88,199.87,4.19106447]
[1756737161050,20.66,199.88,199.87,4.19106447]
[1756737161237,59.64,199.88,199.87,4.19106447]
[1756737161440,39.64,199.88,199.87,9.19431658]
[1756737161745,59.64,199.88,199.87,9.19431658]
[1756737162264,59.64,199.88,199.87,4.19106447]
[1756737162944,20.0,199.87,199.86,4.19106447]
[1756737163141,20.66,199.87,199.86,4.19106447]
[1756737163567,20.0,199.86,199.85,4.19106447]
[1756737163774,59.64,199.86,199.85,4.19106447]
[1756737163983,20.0,199.83,199.81,0.12]
[1756737164180,58.98,199.82,199.81,4.31106447]
[1756737164367,59.64,199.82,199.81,0.12]
[1756737165568,68.97773009,199.82,199.81,0.12]
[1756737167460,82.5733241,199.82,199.81,0.12]
[1756737167874,26.0,199.77,199.75,4.19106447]
[1756737168077,90.96,199.76,199.75,4.19106447]
[1756737168253,111.62,199.76,199.75,4.19106447]
[1756737168454,111.62,199.76,199.7,17.52628942]
[1756737168678,51.7127,199.75,199.7,21.71735389]
[1756737168887,38.98,199.74,199.7,21.71735389]
[1756737169682,38.98,199.74,199.73,4.19106447]
[1756737171257,38.98,199.74,199.73,9.19782359]
[1756737173481,38.96,199.74,199.73,21.7147214]
[1756737173982,38.96,199.74,199.73,17.52365693]
[1756737174189,38.96,199.74,199.73,21.7147214]
[1756737174761,38.96,199.74,199.73,9.19782359]
[1756737176176,38.96,199.74,199.71,5.00726052]
[1756737176371,38.96,199.74,199.73,4.19106447]
[1756737176878,133.9,199.77,199.71,17.52541183]
[1756737177116,38.94,199.76,199.71,17.52541183]
[1756737177272,24.70291646,199.73,199.71,17.52541183]
[1756737177470,38.96,199.74,199.71,17.52541183]
[1756737177678,38.96,199.75,199.71,17.52541183]
[1756737177885,38.96,199.75,199.71,42.56171446]
[1756737178069,38.96,199.75,199.71,17.52541183]
[1756737178471,133.9,199.77,199.74,4.19106447]
[1756737178678,20.0,199.79,199.71,17.52541183]
[1756737178679,53.5,199.76,199.71,17.52541183]
[1756737178878,39.6,199.75,199.71,17.52541183]
[1756737179278,38.94,199.75,199.71,17.52541183]
[1756737179781,38.94,199.75,199.74,4.19106447]
[1756737181693,133.9,199.82,199.75,17.52190237]
[1756737181910,42.64,199.81,199.75,17.52190237]
[1756737182073,42.64,199.81,199.76,13.59559401]
[1756737182276,42.66,199.81,199.76,13.59559401]
[1756737182467,43.32,199.81,199.75,17.52190237]
[1756737182774,0.66,199.8,199.77,15.039479]
[1756737182993,43.34,199.79,199.77,15.039479]
[1756737183187,3.7,199.79,199.78,4.19106447]
[1756737183482,42.68,199.79,199.78,9.19657052]
[1756737183677,43.34,199.79,199.78,9.19657052]
[1756737185272,3.7,199.79,199.78,9.19657052]
[1756737185477,42.68,199.79,199.78,9.19657052]
[1756737185798,4.42,199.79,199.78,9.19657052]
[1756737186897,4.42,199.79,199.78,5.00550605]
[1756737187197,4.42,199.79,199.78,9.19657052]
[1756737187400,4.42,199.79,199.78,4.19106447]
[1756737187605,20.0,199.77,199.73,5.00675912]
[1756737187806,43.4,199.76,199.73,5.00675912]
[1756737188672,43.4,199.76,199.72,12.51732]
[1756737188976,43.4,199.76,199.7,19.23506847]
[1756737188977,0.72,199.75,199.7,15.044004]
[1756737189179,38.98,199.74,199.71,0.71]
[1756737190104,39.7,199.74,199.7,21.71727336]
[1756737190280,4.42,199.73,199.7,9.1984952]
[1756737190479,3.7,199.72,199.7,5.00743073]
[1756737190678,43.38,199.72,199.7,5.00743073]
[1756737190901,42.66,199.72,199.7,5.00743073]
[1756737192147,42.66,199.72,199.69,5.00776203]
[1756737192280,43.38,199.72,199.69,5.00776203]
[1756737192796,0.72,199.71,199.69,5.00776203]
[1756737193303,3.7,199.7,199.69,5.00776203]
[1756737194407,3.7,199.7,199.65,5.00876533]
[1756737194584,3.7,199.69,199.65,5.71876533]
[1756737194903,3.7,199.69,199.67,15.047022]
[1756737195409,3.7,199.69,199.68,0.71]
[1756737195572,0.72,199.75,199.68,0.71]
[1756737195780,20.0,199.75,199.74,4.19106447]
[1756737195994,39.68,199.75,199.74,4.19106447]
[1756737196302,38.96,199.75,199.74,9.19757293]
[1756737196704,38.96,199.75,199.74,5.00650846]
[1756737196922,59.68,199.75,199.74,9.19757293]
[1756737197297,59.68,199.75,199.72,5.00700981]
[1756737197501,20.0,199.73,199.71,5.12719736]
[1756737197708,20.0,199.73,199.72,4.19106447]
[1756737197924,58.96,199.73,199.72,4.19106447]
[1756737198129,59.68,199.73,199.72,4.19106447]
[1756737198721,59.68,199.73,199.71,0.12]
[1756737198722,20.0,199.72,199.71,0.12]
[1756737199026,20.0,199.72,199.71,4.31106447]
[1756737199325,59.68,199.72,199.71,9.31832499]
[1756737199735,59.68,199.72,199.71,4.31106447]
[1756737199905,0.72,199.72,199.71,4.31106447]
[1756737200101,0.72,199.72,199.71,9.31832499]
[1756737200300,38.96,199.72,199.71,9.31832499]
[1756737200623,39.68,199.72,199.71,9.31832499]
[1756737200822,39.68,199.72,199.71,4.31106447]
[1756737200997,39.68,199.72,199.71,9.31832499]
[1756737201198,39.68,199.72,199.71,0.12]
[1756737201439,39.68,199.72,199.71,4.31106447]
[1756737202207,38.96,199.72,199.71,9.31832499]
[1756737202602,0.72,199.74,199.71,9.31832499]
[1756737202925,153.93,199.76,199.73,4.19106447]
[1756737203137,133.93,199.76,199.75,4.19106447]
[1756737203318,38.99,199.76,199.75,4.19106447]
[1756737203507,39.71,199.76,199.71,17.64541183]
[1756737203710,0.72,199.75,199.71,17.64541183]
[1756737203904,39.68,199.74,199.71,17.64541183]
[1756737204109,0.72,199.73,199.71,5.12726052]
[1756737204303,38.96,199.72,199.71,5.12726052]
[1756737204806,38.96,199.72,199.71,9.31832499]
[1756737205604,38.96,199.72,199.71,5.12726052]
[1756737205820,38.96,199.72,199.71,9.31832499]